fUSD/lending_fUSD_20240425
["ID","MTS","AMOUNT","RATE_DAILY","PERIOD"]
[323521689,1714066247821,-150.84930395,0.00011506,2]
[323521690,1714066247831,-1147.57,0.00011506,2]
[323521691,1714066247841,-738.32,0.00011506,2]
[323521692,1714066247852,-5680.8,0.00011506,2]
[323521693,1714066247862,-609.61,0.00011506,2]
[323521694,1714066247871,-500.0,0.00011506,2]
[323521695,1714066247881,-1001.25,0.00011506,2]
[323521696,1714066247891,-500.0,0.00011506,2]
[323521697,1714066247901,-500.0,0.00011506,2]
[323521698,1714066247911,-500.0,0.00011506,2]
[323521699,1714066247922,-789.64,0.00011506,2]
[323521700,1714066247932,-500.0,0.00011506,2]
[323521701,1714066247943,-500.0,0.00011506,2]
[323521702,1714066247952,-632.8,0.00011506,2]
[323521703,1714066247962,-500.0,0.00011506,2]
[323521704,1714066247974,-601.55,0.00011506,2]
[323521705,1714066247984,-500.0,0.00011506,2]
[323521706,1714066247996,-500.0,0.00011506,2]
[323521707,1714066248007,-500.0,0.00011506,2]
[323521708,1714066248016,-500.0,0.00011506,2]
[323521709,1714066248027,-500.0,0.00011506,2]
[323521710,1714066248036,-20821.34,0.00011506,2]
[323521711,1714066248049,-823.59,0.00011506,2]
[323521712,1714066248059,-1235.43,0.00011506,2]
[323521713,1714066248069,-500.0,0.00011506,2]
[323521714,1714066248080,-567.43,0.00011506,2]
[323521715,1714066248091,-500.0,0.00011506,2]
[323521716,1714066248101,-656.83,0.00011506,2]
[323521717,1714066248111,-500.0,0.00011506,2]
[323521718,1714066248121,-681.03,0.00011506,2]
[323521719,1714066248132,-635.37,0.00011506,2]
[323521720,1714066248142,-590.61,0.00011506,2]
[323521721,1714066248153,-574.3,0.00011506,2]
[323521722,1714066248163,-2654.12,0.00011506,2]
[323521723,1714066248174,-2024.77,0.00011506,2]
[323521724,1714066248183,-1309.2,0.00011506,2]
[323521725,1714066248193,-1012.69,0.00011506,2]
[323521726,1714066248204,-696.55,0.00011506,2]
[323521727,1714066248214,-500.0,0.00011506,2]
[323521728,1714066248224,-500.0,0.00011506,2]
[323521729,1714066248235,-500.0,0.00011506,2]
[323521730,1714066248246,-974.67,0.00011506,2]
[323521731,1714066248257,-500.0,0.00011506,2]
[323521732,1714066248267,-577.32,0.00011506,2]
[323521733,1714066248278,-2848.61,0.00011506,2]
[323521734,1714066248289,-848.28,0.00011506,2]
[323521735,1714066248299,-745.83,0.00011506,2]
[323521736,1714066248310,-355.79341527,0.00011506,2]
[323521737,1714066248320,-1052.25,0.00011506,2]
[323521738,1714066248330,-3334.64,0.00011506,2]
[323521739,1714066248340,-570.39,0.00011506,2]
[323521740,1714066248350,-1355.35,0.00011506,2]
[323521741,1714066248360,-500.0,0.00011506,2]
[323521742,1714066248370,-3830.47,0.00011506,2]
[323521743,1714066248381,-500.0,0.00011506,2]
[323521744,1714066248391,-568.19,0.00011506,2]
[323521745,1714066248401,-573.82,0.00011506,2]
[323521746,1714066248413,-652.82,0.00011506,2]
[323521747,1714066248424,-500.0,0.00011506,2]
[323521748,1714066248435,-500.0,0.00011506,2]
[323521749,1714066248447,-500.0,0.00011506,2]
[323521750,1714066248456,-677.0,0.00011506,2]
[323521751,1714066248466,-500.0,0.00011506,2]
[323521752,1714066248476,-500.0,0.00011506,2]
[323521753,1714066248487,-3394.66,0.00011506,2]
[323521754,1714066248497,-2691.47,0.00011506,2]
[323521755,1714066248506,-500.0,0.00011506,2]
[323521756,1714066248517,-500.0,0.00011506,2]
[323521757,1714066248527,-1310.34,0.00011506,2]
[323521758,1714066248538,-617.6,0.00011506,2]
[323521759,1714066248548,-589.35,0.00011506,2]
[323521760,1714066248558,-2968.74,0.00011506,2]
[323521761,1714066248568,-500.0,0.00011506,2]
[323521762,1714066248579,-615.59,0.00011506,2]
[323521763,1714066248589,-2047.53,0.00011506,2]
[323521764,1714066248599,-500.0,0.00011506,2]
[323521765,1714066248608,-3798.41,0.00011506,2]
[323521766,1714066248618,-552.87,0.00011506,2]
[323521767,1714066248628,-500.0,0.00011506,2]
[323521768,1714066248638,-851.95,0.00011506,2]
[323521769,1714066248647,-500.0,0.00011506,2]
[323521770,1714066248657,-1098.79,0.00011506,2]
[323521771,1714066248668,-877.56,0.00011506,2]
[323521772,1714066248677,-589.29,0.00011506,2]
[323521773,1714066248687,-500.0,0.00011506,2]
[323521774,1714066248696,-673.93,0.00011506,2]
[323521775,1714066248705,-500.0,0.00011506,2]
[323521776,1714066248715,-1673.42,0.00011506,2]
[323521777,1714066248726,-1291.49,0.00011506,2]
[323521778,1714066248736,-500.0,0.00011506,2]
[323521779,1714066248745,-1827.2,0.00011506,2]
[323521780,1714066248755,-558.66,0.00011506,2]
[323521781,1714066248764,-500.0,0.00011506,2]
[323521782,1714066248773,-724.24,0.00011506,2]
[323521783,1714066248782,-500.0,0.00011506,2]
[323521784,1714066248791,-3769.61,0.00011506,2]
[323521785,1714066248800,-500.0,0.00011506,2]
[323521786,1714066248809,-702.09,0.00011506,2]
[323521787,1714066248819,-824.42,0.00011506,2]
[323521788,1714066248828,-500.0,0.00011506,2]
[323521789,1714066248838,-500.0,0.00011506,2]
[323521790,1714066248847,-2099.47,0.00011506,2]
[323521791,1714066248857,-1261.32,0.00011506,2]
[323521792,1714066248866,-500.0,0.00011506,2]
[323521793,1714066248877,-2376.25,0.00011506,2]
[323521794,1714066248887,-606.43,0.00011506,2]
[323521795,1714066248897,-1105.1,0.00011506,2]
[323521796,1714066248907,-5195.18,0.00011506,2]
[323521797,1714066248917,-972.6,0.00011506,2]
[323521798,1714066248928,-500.0,0.00011506,2]
[323521799,1714066248938,-543.04147978,0.00011506,2]
[323521800,1714066248947,-1462.05,0.00011506,2]
[323521801,1714066248957,-652.46,0.00011506,2]
[323521802,1714066248966,-871.16,0.00011506,2]
[323521803,1714066248979,-680.41,0.00011506,2]
[323521804,1714066248989,-642.3,0.00011506,2]
[323521805,1714066249002,-688.69,0.00011506,2]
[323521806,1714066249013,-500.0,0.00011506,2]
[323521807,1714066249023,-2663.02,0.00011506,2]
[323521808,1714066249033,-500.0,0.00011506,2]
[323521809,1714066249043,-500.0,0.00011506,2]
[323521810,1714066249053,-500.0,0.00011506,2]
[323521811,1714066249062,-500.0,0.00011506,2]
[323521812,1714066249072,-500.0,0.00011506,2]
[323521813,1714066249084,-1858.12,0.00011506,2]
[323521814,1714066249094,-18372.56,0.00011506,2]
[323521815,1714066249104,-606.79,0.00011506,2]
[323521816,1714066249114,-522.15,0.00011506,2]
[323521817,1714066249124,-817.91,0.00011506,2]
[323521818,1714066249134,-915.05,0.00011506,2]
[323521819,1714066249144,-500.0,0.00011506,2]
[323521820,1714066249154,-1882.87,0.00011506,2]
[323521821,1714066249165,-1106.06,0.00011506,2]
[323521822,1714066249175,-500.0,0.00011506,2]
[323521823,1714066249185,-3987.39,0.00011506,2]
[323521824,1714066249195,-155.90864445,0.0001164,2]
[323521825,1714066249205,-150.0,0.00011653,2]
[323521826,1714066249215,-150.0,0.00011661,2]
[323521827,1714066249226,-150.0,0.00011675,2]
[323521828,1714066249235,-2216.97581004,0.0001168,2]
[323521829,1714066249244,-150.0,0.0001168,2]
[323521830,1714066249254,-557.06374452,0.0001168,2]
[323521831,1714066249265,-150.0,0.00011687,2]
[323521832,1714066249275,-150.0,0.00011692,2]
[323521833,1714066249284,-150.0,0.00011693,2]
[323521834,1714066249295,-150.0,0.00011694,2]
[323521835,1714066249304,-150.0,0.00011697,2]
[323521836,1714066249314,-150.0,0.00011699,2]
[323521837,1714066249325,-2216.97580993,0.000117,2]
[323521838,1714066249335,-150.0,0.00011703,2]
[323521839,1714066249346,-150.0,0.00011704,2]
[323521840,1714066249356,-150.0,0.00011705,2]
[323521841,1714066249366,-150.0,0.00011705,2]
[323521842,1714066249375,-150.0,0.00011705,2]
[323521843,1714066249386,-150.0,0.00011706,2]
[323521844,1714066249396,-150.0,0.00011707,2]
[323521845,1714066249405,-150.0,0.00011708,2]
[323521846,1714066249415,-150.0,0.00011714,2]
[323521847,1714066249425,-2216.97580993,0.0001172,2]
[323521848,1714066249434,-150.0,0.0001172,2]
[323521849,1714066249444,-150.0,0.00011722,2]
[323521850,1714066249453,-150.0,0.00011725,2]
[323521851,1714066249463,-150.0,0.00011725,2]
[323521852,1714066249474,-150.0,0.00011735,2]
[323521853,1714066249483,-2216.97580993,0.0001174,2]
[323521854,1714066249492,-150.0,0.0001174,2]
[323521855,1714066249502,-150.0,0.00011743,2]
[323521856,1714066249512,-300.0,0.00011745,2]
[323521857,1714066249522,-150.0,0.00011754,2]
[323521858,1714066249531,-150.0,0.00011755,2]
[323521859,1714066249540,-150.0,0.00011755,2]
[323521860,1714066249549,-150.0,0.00011756,2]
[323521861,1714066249558,-2216.97580993,0.0001176,2]
[323521862,1714066249567,-150.0,0.0001176,2]
[323521863,1714066249576,-150.0,0.00011761,2]
[323521864,1714066249585,-150.0,0.0001177,2]
[323521865,1714066249595,-150.0,0.00011771,2]
[323521866,1714066249604,-150.0,0.00011772,2]
[323521867,1714066249614,-150.0,0.00011777,2]
[323521868,1714066249623,-500.0,0.00011778,2]
[323521869,1714066249632,-150.0,0.00011778,2]
[323521870,1714066249642,-150.0,0.00011779,2]
[323521871,1714066249651,-2216.97580993,0.0001178,2]
[323521872,1714066249661,-500.0,0.0001178,2]
[323521873,1714066249671,-500.0,0.0001178,2]
[323521874,1714066249680,-585.12,0.0001178,2]
[323521875,1714066249690,-591.95,0.0001178,2]
[323521876,1714066249700,-500.0,0.0001178,2]
[323521877,1714066249710,-500.0,0.0001178,2]
[323521878,1714066249721,-659.05,0.0001178,2]
[323521879,1714066249729,-500.0,0.0001178,2]
[323521880,1714066249740,-500.0,0.0001178,2]
[323521881,1714066249749,-500.0,0.0001178,2]
[323521882,1714066249758,-500.0,0.0001178,2]
[323521883,1714066249767,-500.0,0.0001178,2]
[323521884,1714066249776,-500.0,0.0001178,2]
[323521885,1714066249786,-500.0,0.0001178,2]
[323521886,1714066249795,-500.0,0.0001178,2]
[323521887,1714066249804,-601.53,0.0001178,2]
[323521888,1714066249813,-500.0,0.0001178,2]
[323521889,1714066249822,-643.79,0.0001178,2]
[323521890,1714066249830,-500.0,0.0001178,2]
[323521891,1714066249840,-558.59,0.0001178,2]
[323521892,1714066249850,-500.0,0.0001178,2]
[323521893,1714066249859,-787.64,0.0001178,2]
[323521894,1714066249868,-500.0,0.0001178,2]
[323521895,1714066249877,-500.0,0.0001178,2]
[323521896,1714066249886,-500.0,0.0001178,2]
[323521897,1714066249895,-580.55,0.0001178,2]
[323521898,1714066249905,-500.0,0.0001178,2]
[323521899,1714066249915,-550.04,0.0001178,2]
[323521900,1714066249925,-500.0,0.0001178,2]
[323521901,1714066249935,-858.01,0.0001178,2]
[323521902,1714066249944,-635.99,0.0001178,2]
[323521903,1714066249954,-599.44,0.0001178,2]
[323521904,1714066249965,-500.0,0.0001178,2]
[323521905,1714066249975,-542.88,0.0001178,2]
[323521906,1714066249985,-703.44,0.0001178,2]
[323521907,1714066249997,-876.33,0.0001178,2]
[323521908,1714066250010,-593.02,0.0001178,2]
[323521909,1714066250021,-500.0,0.0001178,2]
[323521910,1714066250031,-500.0,0.0001178,2]
[323521911,1714066250043,-636.61,0.0001178,2]
[323521912,1714066250052,-500.0,0.0001178,2]
[323521913,1714066250061,-515.06,0.0001178,2]
[323521914,1714066250070,-500.0,0.0001178,2]
[323521915,1714066250079,-500.0,0.0001178,2]
[323521916,1714066250090,-560.25,0.0001178,2]
[323521917,1714066250099,-832.46,0.0001178,2]
[323521918,1714066250109,-500.0,0.0001178,2]
[323521919,1714066250120,-500.0,0.0001178,2]
[323521920,1714066250131,-500.0,0.0001178,2]
[323521921,1714066250309,-500.0,0.0001178,2]
[323521922,1714066250319,-577.53,0.0001178,2]
[323521923,1714066250329,-500.0,0.0001178,2]
[323521924,1714066250339,-831.19,0.0001178,2]
[323521925,1714066250348,-500.0,0.0001178,2]
[323521926,1714066250358,-500.0,0.0001178,2]
[323521927,1714066250368,-724.65,0.0001178,2]
[323521928,1714066250378,-500.0,0.0001178,2]
[323521929,1714066250387,-500.0,0.0001178,2]
[323521930,1714066250396,-500.0,0.0001178,2]
[323521931,1714066250405,-361.05490783,0.0001178,2]
[323521932,1714066250414,-500.0,0.0001178,2]
[323521933,1714066250424,-500.0,0.0001178,2]
[323521934,1714066250435,-500.0,0.0001178,2]
[323521935,1714066250445,-500.0,0.0001178,2]
[323521936,1714066250455,-500.0,0.0001178,2]
[323521937,1714066250465,-500.0,0.0001178,2]
[323521938,1714066250476,-500.0,0.0001178,2]
[323521939,1714066250485,-431.81,0.0001178,2]
[323521940,1714066250495,-500.0,0.0001178,2]
[323521941,1714066250505,-682.82,0.0001178,2]
[323521942,1714066250515,-500.0,0.0001178,2]
[323521943,1714066250526,-500.0,0.0001178,2]
[323521944,1714066250535,-549.21,0.0001178,2]
[323521945,1714066250545,-870.29,0.0001178,2]
[323521946,1714066250555,-500.0,0.0001178,2]
[323521947,1714066250566,-558.54,0.0001178,2]
[323521948,1714066250576,-500.0,0.0001178,2]
[323521949,1714066250586,-601.71,0.0001178,2]
[323521950,1714066250597,-150.0,0.0001178,2]
[323521951,1714066250606,-500.0,0.0001178,2]
[323521952,1714066250616,-500.0,0.0001178,2]
[323521953,1714066250626,-500.0,0.0001178,2]
[323521954,1714066250636,-500.0,0.0001178,2]
[323521955,1714066250645,-539.34,0.0001178,2]
[323521956,1714066250656,-500.0,0.0001178,2]
[323521957,1714066250666,-500.0,0.0001178,2]
[323521958,1714066250676,-500.0,0.0001178,2]
[323521959,1714066250685,-500.0,0.0001178,2]
[323521960,1714066250695,-567.35,0.0001178,2]
[323521961,1714066250705,-500.0,0.0001178,2]
[323521962,1714066250714,-500.0,0.0001178,2]
[323521963,1714066250724,-500.0,0.0001178,2]
[323521964,1714066250734,-500.0,0.0001178,2]
[323521965,1714066250744,-500.0,0.0001178,2]
[323521966,1714066250754,-500.0,0.0001178,2]
[323521967,1714066250764,-500.0,0.0001178,2]
[323521968,1714066250774,-500.0,0.0001178,2]
[323521969,1714066250783,-500.0,0.0001178,2]
[323521970,1714066250793,-610.4,0.0001178,2]
[323521971,1714066250802,-500.0,0.0001178,2]
[323521972,1714066250812,-500.0,0.0001178,2]
[323521973,1714066250822,-500.0,0.0001178,2]
[323521974,1714066250832,-681.48,0.0001178,2]
[323521975,1714066250841,-700.14,0.0001178,2]
[323521976,1714066250850,-778.59,0.0001178,2]
[323521977,1714066250859,-763.12,0.0001178,2]
[323521978,1714066250868,-500.0,0.0001178,2]
[323521979,1714066250878,-500.0,0.0001178,2]
[323521980,1714066250887,-1726.4,0.0001178,2]
[323521981,1714066250897,-442.14,0.0001178,2]
[323521982,1714066250906,-500.0,0.0001178,2]
[323521983,1714066250915,-1131.03,0.0001178,2]
[323521984,1714066250925,-7769.94,0.0001178,2]
[323521985,1714066250934,-932.29,0.0001178,2]
[323521986,1714066250943,-1063.54,0.0001178,2]
[323521987,1714066250953,-563.22,0.0001178,2]
[323521988,1714066250962,-1559.14,0.0001178,2]
[323521989,1714066250972,-500.0,0.0001178,2]
[323521990,1714066250981,-921.65,0.0001178,2]
[323521991,1714066250991,-500.0,0.0001178,2]
[323521992,1714066251005,-500.0,0.0001178,2]
[323521993,1714066251014,-8111.88,0.0001178,2]
[323521994,1714066251025,-500.0,0.0001178,2]
[323521995,1714066251035,-1147.57,0.0001178,2]
[323521996,1714066251045,-738.32,0.0001178,2]
[323521997,1714066251055,-5680.8,0.0001178,2]
[323521998,1714066251064,-609.61,0.0001178,2]
[323521999,1714066251073,-500.0,0.0001178,2]
[323522000,1714066251084,-1001.25,0.0001178,2]
[323522001,1714066251094,-500.0,0.0001178,2]
[323522002,1714066251104,-500.0,0.0001178,2]
[323522003,1714066251115,-500.0,0.0001178,2]
[323522004,1714066251125,-789.64,0.0001178,2]
[323522005,1714066251135,-500.0,0.0001178,2]
[323522006,1714066251145,-193.37087638,0.0001178,2]
[323522007,1714066251155,-632.8,0.0001178,2]
[323522008,1714066251164,-500.0,0.0001178,2]
[323522009,1714066251174,-601.55,0.0001178,2]
[323522010,1714066251184,-500.0,0.0001178,2]
[323522011,1714066251194,-500.0,0.0001178,2]
[323522012,1714066251205,-500.0,0.0001178,2]
[323522013,1714066251214,-500.0,0.0001178,2]
[323522014,1714066251223,-500.0,0.0001178,2]
[323522015,1714066251233,-20821.34,0.0001178,2]
[323522016,1714066251244,-823.59,0.0001178,2]
[323522017,1714066251254,-1235.43,0.0001178,2]
[323522018,1714066251265,-500.0,0.0001178,2]
[323522019,1714066251275,-567.43,0.0001178,2]
[323522020,1714066251285,-500.0,0.0001178,2]
[323522021,1714066251296,-656.83,0.0001178,2]
[323522022,1714066251305,-500.0,0.0001178,2]
[323522023,1714066251315,-681.03,0.0001178,2]
[323522024,1714066251324,-635.37,0.0001178,2]
[323522025,1714066251334,-590.61,0.0001178,2]
[323522026,1714066251344,-574.3,0.0001178,2]
[323522027,1714066251353,-2654.12,0.0001178,2]
[323522028,1714066251362,-2024.77,0.0001178,2]
[323522029,1714066251372,-1309.2,0.0001178,2]
[323522030,1714066251381,-1012.69,0.0001178,2]
[323522031,1714066251391,-696.55,0.0001178,2]
[323522032,1714066251404,-500.0,0.0001178,2]
[323522033,1714066251413,-500.0,0.0001178,2]
[323522034,1714066251426,-974.67,0.0001178,2]
[323522035,1714066251438,-500.0,0.0001178,2]
[323522036,1714066251448,-500.0,0.0001178,2]
[323522037,1714066251457,-577.32,0.0001178,2]
[323522038,1714066251466,-2848.61,0.0001178,2]
[323522039,1714066251476,-848.28,0.0001178,2]
[323522040,1714066251485,-745.83,0.0001178,2]
[323522041,1714066251495,-1052.25,0.0001178,2]
[323522042,1714066251504,-3334.64,0.0001178,2]
[323522043,1714066251514,-570.39,0.0001178,2]
[323522044,1714066251523,-1355.35,0.0001178,2]
[323522045,1714066251532,-3830.47,0.0001178,2]
[323522046,1714066251542,-500.0,0.0001178,2]
[323522047,1714066251551,-568.19,0.0001178,2]
[323522048,1714066251560,-573.82,0.0001178,2]
[323522049,1714066251569,-652.82,0.0001178,2]
[323522050,1714066251578,-500.0,0.0001178,2]
[323522051,1714066251588,-500.0,0.0001178,2]
[323522052,1714066251598,-500.0,0.0001178,2]
[323522053,1714066251607,-677.0,0.0001178,2]
[323522054,1714066251617,-500.0,0.0001178,2]
[323522055,1714066251626,-500.0,0.0001178,2]
[323522056,1714066251636,-3394.66,0.0001178,2]
[323522057,1714066251646,-2691.47,0.0001178,2]
[323522058,1714066251655,-482.33126905,0.0001178,2]
[323522059,1714066251664,-500.0,0.0001178,2]
[323522060,1714066251674,-1310.34,0.0001178,2]
[323522061,1714066251683,-617.6,0.0001178,2]
[323522062,1714066251693,-589.35,0.0001178,2]
[323522063,1714066251703,-2968.74,0.0001178,2]
[323522064,1714066251712,-363.9394259,0.0001178,2]
[323522065,1714066251723,-615.59,0.0001178,2]
[323522066,1714066251732,-2047.53,0.0001178,2]
[323522067,1714066251741,-3798.41,0.0001178,2]
[323522068,1714066251750,-500.0,0.0001178,2]
[323522069,1714066251760,-552.87,0.0001178,2]
[323522070,1714066251769,-500.0,0.0001178,2]
[323522071,1714066251778,-851.95,0.0001178,2]
[323522072,1714066251788,-500.0,0.0001178,2]
[323522073,1714066251798,-1098.79,0.0001178,2]
[323522074,1714066251807,-877.56,0.0001178,2]
[323522075,1714066251816,-589.29,0.0001178,2]
[323522076,1714066251826,-500.0,0.0001178,2]
[323522077,1714066251836,-673.93,0.0001178,2]
[323522078,1714066251846,-500.0,0.0001178,2]
[323522079,1714066251857,-1673.42,0.0001178,2]
[323522080,1714066251868,-1291.49,0.0001178,2]
[323522081,1714066251878,-500.0,0.0001178,2]
[323522082,1714066251888,-1827.2,0.0001178,2]
[323522083,1714066251898,-558.66,0.0001178,2]
[323522084,1714066251908,-724.24,0.0001178,2]
[323522085,1714066251919,-500.0,0.0001178,2]
[323522086,1714066251929,-500.0,0.0001178,2]
[323522087,1714066251938,-3769.61,0.0001178,2]
[323522088,1714066251948,-500.0,0.0001178,2]
[323522089,1714066251959,-702.09,0.0001178,2]
[323522090,1714066251968,-824.42,0.0001178,2]
[323522091,1714066251980,-500.0,0.0001178,2]
[323522092,1714066251989,-500.0,0.0001178,2]
[323522093,1714066252000,-2099.47,0.0001178,2]
[323522094,1714066252013,-1261.32,0.0001178,2]
[323522095,1714066252023,-500.0,0.0001178,2]
[323522096,1714066252033,-2376.25,0.0001178,2]
[323522097,1714066252043,-606.43,0.0001178,2]
[323522098,1714066252053,-1105.1,0.0001178,2]
[323522099,1714066252063,-5195.18,0.0001178,2]
[323522100,1714066252073,-972.6,0.0001178,2]
[323522101,1714066252085,-500.0,0.0001178,2]
[323522102,1714066252094,-1462.05,0.0001178,2]
[323522103,1714066252104,-652.46,0.0001178,2]
[323522104,1714066252114,-871.16,0.0001178,2]
[323522105,1714066252124,-680.41,0.0001178,2]
[323522106,1714066252134,-642.3,0.0001178,2]
[323522107,1714066252145,-688.69,0.0001178,2]
[323522108,1714066252155,-500.0,0.0001178,2]
[323522109,1714066252165,-2663.02,0.0001178,2]
[323522110,1714066252176,-500.0,0.0001178,2]
[323522111,1714066252186,-500.0,0.0001178,2]
[323522112,1714066252197,-500.0,0.0001178,2]
[323522113,1714066252207,-500.0,0.0001178,2]
[323522114,1714066252218,-500.0,0.0001178,2]
[323522115,1714066252228,-1858.12,0.0001178,2]
[323522116,1714066252238,-18372.56,0.0001178,2]
[323522117,1714066252248,-606.79,0.0001178,2]
[323522118,1714066252258,-522.15,0.0001178,2]
[323522119,1714066252268,-817.91,0.0001178,2]
[323522120,1714066252278,-915.05,0.0001178,2]
[323522121,1714066252288,-500.0,0.0001178,2]
[323522122,1714066252298,-1882.87,0.0001178,2]
[323522123,1714066252308,-1106.06,0.0001178,2]
[323522124,1714066252319,-500.0,0.0001178,2]
[323522125,1714066252330,-3987.39,0.0001178,2]
[323522126,1714066252340,-150.0,0.00011783,2]
[323522127,1714066252351,-150.0,0.00011786,2]
[323522128,1714066252360,-150.0,0.00011787,2]
[323522129,1714066252371,-557.06374452,0.0001179,2]
[323522130,1714066252381,-150.0,0.00011791,2]
[323522131,1714066252391,-150.0,0.00011794,2]
[323522132,1714066252401,-500.0,0.00011799,2]
[323522133,1714066252412,-2216.97580993,0.000118,2]
[323522134,1714066252422,-150.0,0.000118,2]
[323522135,1714066252432,-150.0,0.00011801,2]
[323522136,1714066252442,-150.0,0.00011807,2]
[323522137,1714066252452,-150.0,0.00011808,2]
[323522138,1714066252462,-150.0,0.00011808,2]
[323522139,1714066252474,-2216.97580993,0.0001182,2]
[323522140,1714066252483,-150.0,0.00011823,2]
[323522141,1714066252493,-150.0,0.00011832,2]
[323522142,1714066252502,-5572.49,0.00011836,2]
[323522143,1714066252512,-150.0,0.00011837,2]
[323522144,1714066252522,-2216.97580993,0.0001184,2]
[323522145,1714066252532,-150.0,0.00011841,2]
[323522146,1714066252542,-150.0,0.00011842,2]
[323522147,1714066252553,-150.0,0.00011847,2]
[323522148,1714066252563,-150.0,0.00011848,2]
[323522149,1714066252573,-150.0,0.00011853,2]
[323522150,1714066252583,-150.0,0.00011855,2]
[323522151,1714066252593,-150.0,0.00011855,2]
[323522152,1714066252603,-359.39766109,0.00011856,2]
[323522153,1714066252613,-161.86317497,0.00011856,2]
[323522154,1714066252623,-684.19475722,0.00011856,2]
[323522155,1714066252634,-694.17711765,0.00011856,2]
[323522156,1714066252644,-150.0,0.00011857,2]
[323522157,1714066252655,-150.0,0.00011858,2]
[323522158,1714066252664,-500.0,0.00011859,2]
[323522159,1714066252674,-150.0,0.00011859,2]
[323522160,1714066252684,-2216.97580993,0.0001186,2]
[323522161,1714066252694,-150.0,0.00011868,2]
[323522162,1714066252703,-2216.97580993,0.0001188,2]
[323522163,1714066252713,-233.0,0.0001188,2]
[323522164,1714066252724,-150.0,0.00011884,2]
[323522165,1714066252733,-150.0,0.00011887,2]
[323522166,1714066252743,-150.0,0.0001189,2]
[323522167,1714066252753,-1500.0,0.00011891,2]
[323522168,1714066252762,-150.0,0.00011892,2]
[323522169,1714066252772,-150.0,0.00011895,2]
[323522170,1714066252781,-150.0,0.00011897,2]
[323522171,1714066252792,-10000.0,0.000119,2]
[323522172,1714066252801,-2216.97580993,0.000119,2]
[323522173,1714066252811,-1000.0,0.000119,2]
[323522174,1714066252822,-155.90864445,0.000119,2]
[323522175,1714066252832,-150.0,0.000119,2]
[323522176,1714066252842,-706.29641948,0.000119,2]
[323522177,1714066252852,-557.06374452,0.000119,2]
[323522178,1714066252861,-1000.0,0.00011904,2]
[323522179,1714066252871,-500.0,0.00011904,2]
[323522180,1714066252881,-150.0,0.00011914,2]
[323522181,1714066252890,-150.0,0.00011915,2]
[323522182,1714066252900,-150.0,0.00011917,2]
[323522183,1714066252909,-150.0,0.00011918,2]
[323522184,1714066252919,-150.0,0.00011919,2]
[323522185,1714066252929,-150.0,0.00011919,2]
[323522186,1714066252938,-150.0,0.00011921,2]
[323522187,1714066252947,-150.0,0.00011924,2]
[323522188,1714066252956,-150.0,0.00011936,2]